bitfinex-derivatives/quotes_SOLF0:USTF0_20240924
["timestamp","ask_amount","ask_price","bid_price","bid_amount"]
[1727165591718,3.3902,147.5,147.46,3.3909]
[1727165591913,9.39,147.54,147.49,9.39]
[1727165592214,9.39,147.54,147.51,9.39]
[1727165592718,3.3895,147.52,147.51,9.39]
[1727165603621,9.39,147.53,147.45,2.7467]
[1727165603925,1.3393,147.55,147.46,9.39]
[1727165603926,9.39,147.52,147.46,9.39]
[1727165604122,9.39,147.51,147.46,9.39]
[1727165604318,3.3908,147.47,147.42,81.38]
[1727165604624,3.3908,147.47,147.46,9.39]
[1727165608320,3.3911,147.45,147.41,2.7038]
[1727165608528,3.3911,147.45,147.44,9.39]
[1727165608719,1.3252,147.49,147.41,2.7038]
[1727165608924,9.39,147.48,147.41,2.7038]
[1727165609222,9.39,147.47,147.41,9.39]
[1727165609419,9.39,147.45,147.41,9.39]
[1727165609622,3.3918,147.42,147.41,9.39]
[1727165610723,3.3918,147.42,147.38,81.38]
[1727165611128,3.3918,147.42,147.41,9.39]
[1727165611830,3.392,147.41,147.4,11.39]
[1727165615032,3.392,147.41,147.4,2.0]
[1727165615234,3.392,147.41,147.4,11.39]
[1727165615535,3.392,147.41,147.4,2.0]
[1727165618733,3.3933,147.36,147.33,2.6762]
[1727165618933,3.3933,147.36,147.35,9.39]
[1727165619234,3.3936,147.35,147.33,2.6762]
[1727165619438,3.3936,147.35,147.34,9.39]
[1727165619833,9.39,147.38,147.27,0.3002]
[1727165620142,9.39,147.37,147.32,9.39]
[1727165620637,3.3939,147.33,147.32,9.39]
[1727165622741,3.38639603,147.44,147.32,9.39]
[1727165622937,9.39,147.39,147.34,9.39]
[1727165623131,12.79849022,147.39,147.34,9.39]
[1727165623540,3.3934,147.36,147.34,9.39]
[1727165623738,9.39,147.39,147.35,9.39]
[1727165624039,3.3931,147.37,147.35,9.39]
[1727165624742,1.3633,147.46,147.31,3.3942]
[1727165624743,3.3932,147.36,147.31,3.3942]
[1727165624934,3.3932,147.36,147.34,9.39]
[1727165625937,3.393,147.37,147.34,9.39]
[1727165626338,3.393,147.37,147.36,9.39]
[1727165627846,3.393,147.37,147.35,9.39]
[1727165628147,9.39,147.39,147.35,9.39]
[1727165628148,3.3932,147.36,147.35,9.39]
[1727165632443,3.3932,147.36,147.34,9.39]
[1727165632636,3.3934,147.35,147.34,9.39]
[1727165633744,3.3934,147.35,147.28,6.028]
[1727165633942,9.39,147.37,147.32,9.39]
[1727165635049,3.3938,147.34,147.32,9.39]
[1727165635248,3.3938,147.34,147.33,9.39]
[1727165635756,9.39,147.38,147.33,9.39]
[1727165636849,3.3936,147.35,147.33,9.39]
[1727165637050,9.39,147.38,147.33,9.39]
[1727165638049,9.39,147.37,147.33,9.39]
[1727165638656,3.3936,147.34,147.33,9.39]
[1727165639956,3.3936,147.34,147.3,3.3945]
[1727165640158,3.3936,147.34,147.33,9.39]
[1727165640557,3.3935,147.35,147.33,9.39]
[1727165640852,3.3935,147.35,147.3,3.3945]
[1727165641057,3.3935,147.35,147.34,9.39]
[1727165643255,3.3937,147.34,147.33,9.39]
[1727165643463,3.3937,147.34,147.29,3.3947]
[1727165643760,3.3937,147.34,147.33,9.39]
[1727165647958,1.3977,147.4,147.33,9.39]
[1727165648159,12.0991,147.41,147.36,9.39]
[1727165648465,9.39,147.39,147.34,9.39]
[1727165648668,3.3935,147.35,147.34,9.39]
[1727165648863,9.39,147.35,147.28,2.633]
[1727165649163,9.39,147.34,147.29,9.39]
[1727165649763,3.3945,147.31,147.29,9.39]
[1727165650963,3.3946,147.3,147.28,2.633]
[1727165651160,9.39,147.32,147.27,9.39]
[1727165651555,2.6888,147.41,147.23,3.31159165]
[1727165651760,9.39,147.38,147.33,9.39]
[1727165652462,21.7937,147.39,147.2,2.8265]
[1727165652660,9.39,147.29,147.24,9.39]
[1727165653057,3.3954,147.27,147.24,9.39]
[1727165653660,3.3951,147.28,147.25,9.39]
[1727165653856,9.39,147.31,147.26,9.39]
[1727165654062,9.39,147.31,147.27,9.39]
[1727165655166,1.4137,147.39,147.3,9.39]
[1727165655356,1.4137,147.39,147.34,9.39]
[1727165655761,1.4137,147.39,147.29,3.42750424]
[1727165655762,10.8037,147.39,147.29,3.42750424]
[1727165655964,10.8037,147.39,147.33,9.39]
[1727165656267,10.8037,147.39,147.31,14.67]
[1727165656268,1.4137,147.39,147.31,14.67]
[1727165657262,3.393,147.37,147.31,14.67]
[1727165657565,3.393,147.37,147.31,16.0107]
[1727165658069,1.4137,147.39,147.31,19.4049]
[1727165658462,3.3931,147.37,147.31,19.4049]
[1727165658768,1.4137,147.39,147.31,16.0107]
[1727165659262,3.3933,147.36,147.31,16.0107]
[1727165659469,3.3933,147.36,147.31,19.405]
[1727165660672,3.3934,147.35,147.31,19.405]
[1727165661865,3.3934,147.35,147.33,14.67]
[1727165662273,3.3932,147.36,147.33,14.67]
[1727165662674,1.3474,147.41,147.33,14.67]
[1727165662862,18.10529331,147.44,147.35,14.67]
[1727165663069,14.67,147.44,147.35,14.67]
[1727165663672,18.12702064,147.44,147.35,14.67]
[1727165664475,3.3929,147.38,147.35,14.67]
[1727165664875,18.12702064,147.44,147.35,14.67]
[1727165665078,3.3926,147.39,147.35,14.67]
[1727165666781,3.3923,147.4,147.37,14.67]
[1727165668184,3.3925,147.39,147.37,14.67]
[1727165668380,17.3984,147.46,147.37,14.67]
[1727165668878,3.36002915,147.45,147.37,14.67]
[1727165669176,3.3924,147.4,147.37,14.67]
[1727165669974,14.67,147.44,147.35,14.67]
[1727165670175,14.67,147.43,147.31,1.3407]
[1727165670481,3.3931,147.37,147.33,14.67]
[1727165671083,3.3928,147.38,147.33,14.67]
[1727165671380,3.3928,147.38,147.35,14.67]
[1727165672777,3.3925,147.4,147.37,14.67]
[1727165675083,17.3984,147.46,147.37,14.67]
[1727165675376,3.3925,147.39,147.37,14.67]
[1727165678284,3.3925,147.39,147.38,9.38]
[1727165679891,3.3927,147.38,147.34,3.3936]
[1727165680089,3.3927,147.38,147.37,9.38]
[1727165680590,3.393,147.37,147.33,3.3938]
[1727165680903,3.37145923,147.44,147.36,9.38]
[1727165681084,9.38,147.42,147.38,9.38]
[1727165681283,3.3925,147.39,147.38,9.38]
[1727165682488,3.3929,147.38,147.33,3.3938]
[1727165682782,3.3929,147.38,147.37,9.38]
[1727165684090,9.38,147.41,147.36,9.38]
[1727165684391,9.38,147.4,147.36,9.38]
[1727165684587,3.3929,147.37,147.36,9.38]
[1727165686986,3.3928,147.38,147.36,9.38]
[1727165687183,3.3928,147.38,147.37,9.38]
[1727165688688,10.724,147.41,147.36,9.38]
[1727165689588,3.3929,147.37,147.36,9.38]
[1727165691693,3.3929,147.37,147.32,3.394]
[1727165691893,3.3929,147.37,147.36,9.38]
[1727165694497,3.3928,147.38,147.36,9.38]
[1727165694700,3.3928,147.38,147.37,9.38]
[1727165696194,12.74546948,147.42,147.31,1.3407]
[1727165696400,3.3931,147.37,147.36,9.38]
[1727165697897,12.74546948,147.42,147.36,9.38]
[1727165697898,3.3928,147.38,147.36,9.38]
[1727165698096,3.3928,147.38,147.37,9.38]
[1727165699002,3.393,147.37,147.36,9.38]
[1727165700808,1.3526,147.45,147.36,9.38]
[1727165701030,6.7805,147.49,147.44,9.38]
[1727165701031,13.20776765,147.49,147.44,9.38]
[1727165701470,3.3911,147.45,147.44,9.38]
[1727165702108,3.3916,147.43,147.38,6.2091]
[1727165702408,1.3858,147.49,147.42,9.38]
[1727165702598,1.3858,147.49,147.45,9.38]
[1727165702795,3.3909,147.46,147.45,9.38]
[1727165703706,1.3858,147.49,147.45,9.38]
[1727165705008,3.3909,147.46,147.45,9.38]
[1727165711310,9.38,147.46,147.38,2.8165]
[1727165711513,12.74861858,147.45,147.38,2.8165]
[1727165711707,3.3927,147.38,147.37,1.4255]
[1727165711913,3.3927,147.38,147.37,9.38]
[1727165712107,3.39271165,147.42,147.37,9.38]
[1727165712311,9.38,147.4,147.31,3.9295]
[1727165712512,9.38,147.4,147.35,9.38]
[1727165712817,1.3589,147.41,147.35,9.38]
[1727165712818,12.75812008,147.39,147.35,9.38]
[1727165713018,3.3932,147.36,147.35,9.38]
[1727165713222,9.38,147.39,147.31,3.9295]
[1727165713420,9.38,147.39,147.34,9.38]
[1727165713614,3.3933,147.36,147.34,9.38]
[1727165713920,3.3933,147.36,147.35,9.38]
[1727165714615,10.7389,147.41,147.35,9.38]
[1727165714916,10.7389,147.41,147.37,9.38]
[1727165715114,3.3928,147.38,147.37,9.38]
[1727165718119,10.7389,147.41,147.31,7.3237]
[1727165718313,9.38,147.4,147.31,7.3237]
[1727165718514,9.38,147.4,147.35,9.38]
[1727165718717,9.38,147.4,147.31,3.9295]
[1727165718917,9.38,147.38,147.34,9.38]
[1727165719927,9.38,147.37,147.32,9.38]
[1727165720427,3.3939,147.33,147.32,9.38]
[1727165727531,12.73279704,147.33,147.1,81.48]
[1727165727730,9.38,147.29,147.11,16.18020705]
[1727165727927,9.38,147.29,147.25,9.38]
[1727165728240,6.7869,147.35,147.25,9.38]
[1727165728241,3.3956,147.26,147.25,9.38]
[1727165730438,14.67,147.29,147.22,1.3053]
[1727165730733,14.67,147.29,147.19,14.67]
[1727165732325,14.67,147.27,147.19,14.67]
[1727165732733,3.397,147.2,147.17,14.67]
[1727165734327,14.67,147.25,147.17,14.67]
[1727165735029,3.3969,147.2,147.17,14.67]
[1727165735832,3.3967,147.21,147.17,14.67]
[1727165736129,14.67,147.23,147.14,14.67]
[1727165736322,3.397,147.2,147.14,14.67]
[1727165736527,14.67,147.23,147.14,14.67]
[1727165736928,3.3972,147.19,147.14,18.0682]
[1727165737229,14.67,147.23,147.14,18.0682]
[1727165737426,3.34658781,147.22,147.14,18.0682]
[1727165737626,14.67,147.23,147.15,3.398]
[1727165737828,14.67,147.25,147.16,14.67]
[1727165738531,3.34081022,147.24,147.16,14.67]
[1727165739429,14.67,147.25,147.16,18.0678]
[1727165739630,3.47766977,147.26,147.18,14.67]
[1727165739832,14.67,147.27,147.18,14.67]
[1727165740338,3.3964,147.23,147.18,14.67]
[1727165740636,14.67,147.22,147.1,3.3229129]
[1727165740946,14.67,147.21,147.12,14.67]
[1727165741328,3.3977,147.17,147.12,14.67]
[1727165741531,14.67,147.19,147.11,4.0462]
[1727165741934,3.3985,147.13,147.11,4.0462]
[1727165742140,18.10382502,147.19,147.11,4.0462]
[1727165742339,6.7917,147.25,147.11,4.0462]
[1727165742642,3.3978,147.16,147.11,7.4451]
[1727165743939,3.3978,147.16,147.12,14.67]
[1727165744142,14.67,147.21,147.12,14.67]
[1727165744143,3.3977,147.17,147.12,18.0687]
[1727165744347,14.67,147.23,147.14,14.67]
[1727165744646,3.3973,147.18,147.14,18.0682]
[1727165744838,14.67,147.23,147.14,18.0682]
[1727165745044,14.67,147.23,147.14,14.67]
[1727165745244,3.3977,147.17,147.12,14.67]
[1727165745443,14.67,147.21,147.12,14.67]
[1727165745644,3.3975,147.18,147.13,3.3983]
[1727165746038,14.67,147.25,147.16,14.67]
[1727165746243,3.3968,147.21,147.16,18.0676]
[1727165746446,3.3968,147.21,147.17,1.3445]
[1727165746645,14.67,147.25,147.17,1.3445]
[1727165746943,3.3969,147.2,147.17,1.3445]
[1727165747751,14.67,147.23,147.17,1.3445]
[1727165748142,14.67,147.25,147.17,1.3445]
[1727165749344,14.67,147.23,147.05,3.36278974]
[1727165749551,14.67,147.2,147.12,1.3685]
[1727165749949,3.398,147.16,147.12,1.3685]
[1727165750344,14.67,147.2,147.12,1.3685]
[1727165750745,3.398,147.15,147.12,1.3685]
[1727165753247,3.3983,147.14,147.12,1.3685]
[1727165754253,3.3985,147.13,147.12,1.3685]
[1727165756255,3.3985,147.13,147.12,10.7685]
[1727165757855,3.3983,147.14,147.12,10.7685]
[1727165758060,3.3983,147.14,147.13,9.4]
[1727165758860,3.3981,147.15,147.13,9.4]
[1727165761263,3.3982,147.14,147.13,9.4]
[1727165761764,3.3981,147.15,147.13,9.4]
[1727165762655,3.3982,147.14,147.13,9.4]
[1727165764065,3.3985,147.13,147.12,1.3685]
[1727165764272,3.3985,147.13,147.12,10.7685]
[1727165766863,9.4,147.16,147.06,1.3136]
[1727165767072,9.4,147.16,147.11,9.4]
[1727165767367,3.3987,147.12,147.11,9.4]
[1727165771373,3.3986,147.13,147.11,9.4]
[1727165771571,3.3986,147.13,147.12,9.4]
[1727165772168,3.3983,147.14,147.12,9.4]
[1727165772372,3.3983,147.14,147.13,9.4]
[1727165772769,3.3983,147.14,147.1,3.3991]
[1727165772968,3.3987,147.13,147.12,9.4]
[1727165774277,3.3987,147.12,147.09,6.7237934]
[1727165774470,3.3987,147.12,147.11,9.4]
[1727165774771,3.3986,147.13,147.11,9.4]
[1727165776380,3.3987,147.12,147.1,6.74603322]
[1727165776573,3.3987,147.12,147.11,9.4]
[1727165777080,3.46763225,147.18,147.11,12.7989]
[1727165777081,9.4,147.18,147.11,12.7989]
[1727165777274,9.4,147.18,147.13,9.4]
[1727165777678,3.3982,147.14,147.13,9.4]
[1727165778473,3.3982,147.14,147.12,9.4]
[1727165778780,9.4,147.17,147.06,96.42807611]
[1727165778975,9.4,147.17,147.11,9.4]
[1727165779378,3.3984,147.14,147.11,9.4]
[1727165780075,3.3982,147.15,147.13,9.4]
[1727165783670,3.3982,147.14,147.11,9.4]
[1727165783885,9.4,147.16,147.11,9.4]
[1727165784074,3.3985,147.13,147.11,9.4]
[1727165785977,9.4,147.17,147.11,9.4]
[1727165786277,12.81561267,147.17,147.06,99.90828826]
[1727165786482,3.3986,147.13,147.11,9.4]
[1727165786681,3.3986,147.13,147.09,3.3992]
[1727165786882,3.3986,147.13,147.11,9.4]
[1727165787780,3.3986,147.13,147.12,9.4]
[1727165787987,9.4,147.2,147.12,9.4]
[1727165788177,9.4,147.18,147.14,9.4]
[1727165788382,3.3982,147.15,147.14,9.4]
[1727165789381,3.3978,147.16,147.11,3.3987]
[1727165789587,9.4,147.18,147.12,9.4]
[1727165790087,3.3981,147.15,147.12,9.4]
[1727165792287,3.3983,147.14,147.12,9.4]
[1727165797295,3.3985,147.13,147.11,9.4]
[1727165797594,9.4,147.15,147.09,3.3993]
[1727165797898,9.4,147.15,147.11,9.4]
[1727165798996,3.3986,147.13,147.12,9.4]
[1727165800808,3.3986,147.13,147.11,9.4]
[1727165803306,3.3987,147.12,147.11,9.4]
[1727165803705,3.3987,147.12,147.1,3.3991]
[1727165803910,3.3987,147.12,147.11,9.4]
[1727165804208,3.3986,147.13,147.11,9.4]
[1727165804812,3.3987,147.12,147.11,9.4]
[1727165805814,3.3986,147.13,147.11,9.4]
[1727165806006,3.3986,147.13,147.12,9.4]
[1727165806207,9.4,147.16,147.06,99.90828826]
[1727165806409,9.4,147.15,147.11,9.4]
[1727165806600,9.4,147.16,147.11,9.4]
[1727165806802,9.4,147.16,147.12,9.4]
[1727165807016,9.4,147.17,147.12,9.4]
[1727165810206,3.35101319,147.18,147.12,9.4]
[1727165810411,9.4,147.17,147.12,9.4]
[1727165811008,13.25696759,147.24,147.06,99.90828826]
[1727165811009,3.4491247,147.26,147.16,9.4]
[1727165811201,3.3964,147.22,147.2,9.4]
[1727165812114,3.3966,147.21,147.09,86.14086861]
[1727165812311,3.3966,147.21,147.18,9.4]
[1727165813814,9.4,147.23,147.18,9.4]
[1727165814305,3.3969,147.2,147.18,9.4]
[1727165814503,9.4,147.2,147.17,9.4]
[1727165814916,3.3973,147.19,147.17,9.4]
[1727165817607,9.4,147.18,147.11,6.3243538]
[1727165817807,9.4,147.16,147.1,9.4]
[1727165818012,12.86213974,147.16,147.1,9.4]
[1727165818312,9.4,147.16,147.1,9.4]
[1727165820444,3.3983,147.14,147.1,9.4]
[1727165820618,3.3983,147.14,147.12,9.4]
[1727165821719,2.6182,147.21,147.07,4.1057]
[1727165821720,2.6182,147.21,147.13,9.4]
[1727165822016,1.3637,147.21,147.18,9.4]
[1727165822318,3.397,147.2,147.18,9.4]
[1727165822511,3.32245342,147.22,147.19,9.4]
[1727165822714,9.4,147.24,147.19,9.4]
[1727165823020,3.3967,147.21,147.19,9.4]
[1727165826510,9.4,147.24,147.1,6.31923975]
[1727165826511,20.38,147.24,147.1,6.31923975]
[1727165826710,20.38,147.24,147.11,9.4]
[1727165826711,9.4,147.17,147.11,9.4]
[1727165826917,12.73230709,147.17,147.11,9.4]
[1727165827333,3.3984,147.14,147.11,9.4]
[1727165827619,3.3984,147.14,147.12,9.4]
[1727165828420,3.3984,147.14,147.1,14.69]
[1727165828616,3.3981,147.15,147.11,14.69]
[1727165828817,1.376,147.21,147.13,14.69]
[1727165829017,1.2563,147.27,147.14,4.7759]
[1727165829222,14.69,147.24,147.15,14.69]
[1727165830517,3.3973,147.19,147.15,14.69]
[1727165830720,14.69,147.24,147.15,14.69]
[1727165831122,3.3973,147.19,147.15,18.088]
[1727165832816,3.3973,147.19,147.15,14.69]
[1727165833018,3.3974,147.18,147.15,14.69]
[1727165834724,14.69,147.24,147.15,14.69]
[1727165835918,14.69,147.24,147.14,18.8819]
[1727165836527,3.3977,147.17,147.14,18.8819]
[1727165837524,3.3978,147.16,147.14,18.8819]
[1727165839823,3.47540188,147.25,147.15,14.69]
[1727165840023,1.376,147.26,147.15,14.69]
[1727165840225,14.60774623,147.26,147.15,14.69]
[1727165840625,18.05890522,147.26,147.15,18.0879]
[1727165841932,3.3972,147.19,147.15,18.0879]
[1727165842328,18.05890522,147.26,147.16,3.3976]
[1727165842527,18.05890522,147.26,147.17,14.69]
[1727165843929,3.397,147.2,147.17,14.69]
[1727165844831,3.3967,147.21,147.17,14.69]
[1727165845634,18.05890522,147.26,147.17,18.0875]
[1727165845635,3.3966,147.22,147.17,18.0875]
[1727165846129,3.3966,147.21,147.17,18.0875]
[1727165848128,3.3969,147.2,147.17,18.0875]
[1727165850034,3.3971,147.19,147.17,18.0875]
[1727165850233,3.3971,147.19,147.17,14.69]
[1727165850432,3.3971,147.19,147.18,9.39]
[1727165850934,9.39,147.23,147.11,3.43983684]
[1727165851233,9.39,147.23,147.18,9.39]
[1727165851735,3.3971,147.19,147.18,9.39]
[1727165853642,9.39,147.25,147.18,9.39]
[1727165853940,9.39,147.25,147.2,9.39]
[1727165855747,3.3966,147.21,147.2,9.39]
[1727165856938,3.45115899,147.26,147.2,9.39]
[1727165857139,68.37417442,147.29,147.24,9.39]
[1727165857534,3.43223552,147.28,147.24,9.39]
[1727165858735,9.39,147.26,146.95,17.0126]
[1727165858936,9.39,147.26,147.21,9.39]
[1727165859135,9.39,147.26,147.22,9.39]
[1727165859336,3.3963,147.23,147.22,9.39]
[1727165869945,3.396,147.24,147.22,9.39]
[1727165871347,3.396,147.24,147.23,9.39]
[1727165874951,3.3958,147.25,147.23,9.39]
[1727165875258,3.3958,147.25,147.24,9.39]
[1727165877462,58.98417442,147.29,147.24,9.39]
[1727165877760,58.98417442,147.29,147.27,9.39]
[1727165877961,3.395,147.28,147.27,9.39]
[1727165879864,58.98417442,147.29,147.22,3.3964]
[1727165880070,3.3956,147.26,147.25,9.39]
[1727165880775,58.98417442,147.29,147.19,4.0724]
[1727165880776,9.39,147.27,147.19,4.0724]
[1727165880976,9.39,147.27,147.21,9.39]
[1727165881176,9.39,147.26,147.21,9.39]
[1727165881976,3.3961,147.24,147.21,9.39]
[1727165882876,3.42110627,147.23,147.09,6.7988]
[1727165883070,58.98417442,147.29,147.2,9.39]
[1727165883379,3.3964,147.23,147.21,9.39]
[1727165885576,9.39,147.26,147.18,3.35790975]
[1727165885873,9.39,147.26,147.21,9.39]
[1727165886177,3.3964,147.22,147.21,9.39]
[1727165886373,9.39,147.26,147.16,2.6127]
[1727165886573,9.39,147.24,147.18,9.39]
[1727165886969,9.39,147.25,147.2,9.39]
[1727165887479,9.39,147.25,147.21,9.39]
[1727165887882,3.3964,147.23,147.21,9.39]
[1727165888177,9.39,147.25,147.21,9.39]
[1727165888878,3.3964,147.22,147.21,9.39]
[1727165889278,3.3969,147.21,147.19,9.39]
[1727165891081,3.3969,147.21,147.2,9.39]
[1727165892978,9.39,147.27,147.2,9.39]
[1727165893179,9.39,147.27,147.22,9.39]
[1727165893381,3.3961,147.24,147.22,9.39]
[1727165894580,3.3958,147.25,147.23,9.39]
[1727165894777,68.37417442,147.29,147.23,9.39]
[1727165895182,3.3954,147.27,147.23,9.39]
[1727165895380,3.3954,147.27,147.25,9.39]
[1727165898990,3.3955,147.26,147.25,9.39]
[1727165899190,68.37417442,147.29,147.24,9.39]
[1727165899581,3.3957,147.26,147.24,9.39]
[1727165900092,68.37417442,147.29,147.24,9.39]
[1727165900396,58.98417442,147.29,147.25,9.39]
[1727165901387,58.98417442,147.29,147.21,2.7254]
[1727165901388,58.98417442,147.29,147.24,9.39]
[1727165901690,2.7627,147.3,147.24,9.39]
[1727165901890,9.39,147.29,147.24,9.39]
[1727165903389,3.3956,147.26,147.24,9.39]
[1727165904504,3.3957,147.25,147.24,9.39]
[1727165905291,3.3956,147.26,147.24,9.39]
[1727165905503,12.841011,147.31,147.26,9.39]
[1727165905794,14.58303381,147.34,147.3,9.39]
[1727165906001,2.6181,147.38,147.31,9.39]
[1727165906195,9.39,147.36,147.31,9.39]
[1727165906390,12.85266222,147.36,147.31,9.39]
[1727165906590,9.39,147.36,147.31,9.39]
[1727165906892,9.39,147.37,147.31,9.39]
[1727165907292,9.39,147.37,147.33,9.39]
[1727165907799,9.39,147.39,147.34,9.39]
[1727165908002,3.3933,147.36,147.34,9.39]
[1727165908200,1.3536,147.4,147.33,9.39]
[1727165908503,9.39,147.38,147.33,9.39]
[1727165910300,3.3935,147.35,147.33,9.39]
[1727165910498,3.3935,147.35,147.34,9.39]
[1727165916700,9.39,147.37,147.32,9.39]
[1727165917206,1.3536,147.4,147.27,4.0281]
[1727165917207,3.3936,147.35,147.33,9.39]
[1727165917506,9.39,147.39,147.33,9.39]
[1727165918712,3.3936,147.34,147.33,9.39]
[1727165919911,9.39,147.38,147.27,4.0281]
[1727165920108,9.39,147.38,147.32,9.39]
[1727165920304,9.39,147.38,147.33,9.39]
[1727165920707,3.3936,147.34,147.33,9.39]
[1727165925105,12.73883878,147.35,147.27,4.0281]
[1727165925304,9.39,147.35,147.29,9.39]
[1727165925913,9.39,147.33,147.27,12.0981]
[1727165926213,3.42387613,147.32,147.27,12.0981]
[1727165927018,3.395,147.28,147.27,12.0981]
[1727165927316,3.42387613,147.32,147.27,12.0981]
[1727165927713,6.7866,147.36,147.19,82.7897]
[1727165927911,6.7866,147.36,147.24,9.39]
[1727165927912,9.39,147.29,147.24,9.39]
[1727165928312,3.3954,147.27,147.24,9.39]
[1727165928715,3.3954,147.27,147.26,9.39]
[1727165929217,3.3952,147.28,147.26,9.39]
[1727165930116,3.3948,147.29,147.27,9.39]
[1727165930310,3.3948,147.29,147.28,9.39]
[1727165931109,3.9848,147.35,147.28,9.39]
[1727165931315,12.1409,147.35,147.3,9.39]
[1727165931616,3.3942,147.32,147.3,9.39]
[1727165932018,12.1409,147.35,147.3,9.39]
[1727165932417,9.39,147.35,147.3,9.39]
[1727165932917,3.3942,147.32,147.3,9.39]
[1727165934319,3.3943,147.31,147.29,9.39]
[1727165934522,9.39,147.34,147.28,9.39]
[1727165937121,3.3945,147.31,147.28,9.39]
[1727165938313,3.3945,147.31,147.3,9.39]
[1727165939326,3.3941,147.32,147.3,9.39]
[1727165940025,3.3941,147.32,147.31,9.39]
[1727165940213,9.39,147.37,147.31,9.39]
[1727165940925,3.394,147.33,147.31,9.39]
[1727165941727,12.70215621,147.35,147.27,7.4526]
[1727165941924,9.39,147.34,147.27,13.4474]
[1727165942117,9.39,147.32,147.27,13.4474]
[1727165942320,9.39,147.32,147.27,12.077]
[1727165942522,9.39,147.32,147.27,2.687]
[1727165943228,9.39,147.32,147.27,12.077]
[1727165943426,3.395,147.29,147.27,12.077]
[1727165943827,9.39,147.32,147.27,12.077]
[1727165945025,3.395,147.29,147.27,12.077]
[1727165945531,3.3946,147.3,147.28,9.39]
[1727165951639,3.3948,147.29,147.27,12.077]
[1727165953240,3.3948,147.29,147.28,9.39]
[1727165954532,3.3948,147.29,147.12,81.5]
[1727165954533,9.39,147.29,147.12,81.5]
[1727165954734,9.39,147.25,147.2,9.39]
[1727165955039,3.3963,147.23,147.2,9.39]
[1727165955239,9.39,147.25,147.2,9.39]
[1727165955535,3.3962,147.23,147.21,9.39]
[1727165955940,3.3957,147.26,147.22,9.39]
[1727165956133,3.3957,147.26,147.24,9.39]
[1727165958434,3.3957,147.26,147.25,9.39]
[1727165958838,3.3952,147.28,147.25,9.39]
[1727165959139,3.3952,147.28,147.27,9.39]
[1727165959336,9.39,147.33,147.27,9.39]
[1727165959640,9.39,147.33,147.28,9.39]
[1727165960736,3.3948,147.3,147.28,9.39]
[1727165961443,3.3948,147.29,147.28,9.39]
[1727165962537,9.39,147.33,147.28,9.39]